bitfinex-derivatives/quotes_ETHF0:USTF0_20210107
["timestamp","ask_amount","ask_price","bid_price","bid_amount"]
[1609987952754,34.00959,1188.2,1188.0,4.00959]
[1609987953054,4.00959,1188.2,1188.0,4.00959]
[1609987953754,35.71109,1188.2,1188.0,4.00959]
[1609987955056,34.00959,1188.2,1188.0,4.00959]
[1609987956055,35.67059,1188.2,1188.0,4.00959]
[1609987956255,4.00959,1188.2,1188.0,4.00959]
[1609987958556,11.051,1188.7,1188.0,4.00959]
[1609987959657,11.051,1188.7,1188.0,13.21649]
[1609987959858,11.051,1188.7,1188.6,4.00959]
[1609987960058,7.377,1188.7,1188.6,4.00959]
[1609987963362,3.674,1189.6,1188.6,4.00959]
[1609987963562,73.4,1192.4,1188.6,4.00959]
[1609987963763,88.066,1192.4,1188.6,4.00959]
[1609987963962,89.7599,1192.4,1189.5,4.00959]
[1609987964163,88.066,1192.4,1189.5,4.00959]
[1609987965166,89.7193,1192.4,1189.5,4.00959]
[1609987965367,48.4139,1192.0,1189.8,52.1741]
[1609987965565,31.6722,1191.9,1189.8,52.1741]
[1609987965865,4.00959,1190.2,1190.1,4.00959]
[1609987966466,4.00959,1190.2,1189.8,52.1741]
[1609987968069,4.00959,1190.2,1190.0,4.00959]
[1609987969470,4.00959,1190.2,1189.9,64.6399]
[1609987970171,5.67939,1190.2,1189.9,64.6399]
[1609987970974,4.00959,1190.2,1189.9,64.6399]
[1609987971873,4.00959,1190.0,1189.9,64.6399]
[1609987975477,34.00959,1190.0,1189.9,64.6399]
[1609987976878,4.00959,1190.0,1189.9,64.6399]
[1609987977278,2.4322,1190.6,1189.9,64.6399]
[1609987977786,3.1805,1190.9,1189.9,64.6399]
[1609987977979,4.00959,1190.2,1190.0,4.00959]
[1609987978982,4.00959,1190.2,1190.0,71.99659]
[1609987985086,22.043,1191.2,1190.0,71.99659]
[1609987985285,52.043,1191.2,1190.0,71.99659]
[1609987985986,52.043,1191.2,1190.8,4.00959]
[1609987986187,50.046,1191.2,1190.8,4.00959]
[1609987986392,20.046,1191.2,1190.8,4.00959]
[1609987987990,4.00959,1191.0,1190.9,47.312]
[1609987988690,48.369,1191.2,1190.9,47.312]
[1609987988889,18.369,1191.2,1190.9,47.312]
[1609987989291,7.377,1191.2,1190.9,47.312]
[1609987989990,11.38659,1191.2,1191.1,4.00959]
[1609987990492,7.377,1191.2,1191.1,4.00959]
[1609987992094,4.00959,1191.8,1191.1,4.00959]
[1609987994002,4.00959,1191.8,1191.7,4.00959]
[1609987996206,3.674,1192.0,1191.7,4.00959]
[1609987997407,7.377,1192.3,1191.7,4.00959]
[1609987998208,7.377,1192.3,1192.2,4.00959]
[1609987998509,7.377,1192.4,1192.2,4.00959]
[1609988003016,3.2104,1192.4,1192.2,4.00959]
[1609988004116,4.00959,1193.6,1192.2,4.00959]
[1609988004718,7.68359,1193.6,1192.2,4.00959]
[1609988006221,4.00959,1193.4,1193.3,4.00959]
[1609988006521,3.3168,1194.4,1193.3,4.00959]
[1609988006721,14.3678,1194.4,1193.3,4.00959]
[1609988006923,6.9908,1194.4,1193.3,4.00959]
[1609988008128,4.00959,1193.6,1193.5,4.00959]
[1609988009430,14.3678,1194.4,1193.5,4.00959]
[1609988010131,14.3678,1194.4,1193.8,4.00959]
[1609988010530,14.3678,1194.4,1193.3,61.9956]
[1609988012136,14.3678,1194.4,1194.2,4.00959]
[1609988012333,6.9908,1194.4,1194.2,4.00959]
[1609988012735,3.674,1194.4,1194.2,4.00959]
[1609988015940,3.674,1194.4,1194.2,51.81919]
[1609988016238,4.00959,1194.7,1194.2,51.81919]
[1609988017942,22.043,1195.4,1194.2,51.81919]
[1609988018442,11.38659,1195.4,1195.2,4.00959]
[1609988018947,11.38659,1195.4,1194.2,47.8096]
[1609988019246,15.06059,1195.4,1194.2,47.8096]
[1609988020246,11.051,1195.4,1195.1,4.00959]
[1609988020548,7.377,1195.4,1195.1,4.00959]
[1609988021150,7.377,1195.4,1194.2,47.8096]
[1609988021448,11.051,1195.4,1194.2,47.8096]
[1609988022249,11.051,1195.4,1195.1,4.00959]
[1609988022649,7.377,1195.4,1195.1,4.00959]
[1609988024356,4.00959,1195.2,1194.9,4.00959]
[1609988025355,4.00959,1195.2,1194.7,67.8041]
[1609988025557,4.00959,1195.2,1193.4,5.7454]
[1609988026356,11.051,1195.4,1194.5,4.00959]
[1609988026554,3.674,1195.4,1194.5,4.00959]
[1609988026755,3.674,1195.4,1192.6,5.6471]
[1609988027054,22.043,1195.4,1192.6,5.6471]
[1609988027254,22.043,1195.4,1181.5,30.0]
[1609988027459,22.043,1195.4,1181.5,431.183]
[1609988027759,22.043,1195.4,1181.6,6.1537]
[1609988027958,22.043,1195.4,1181.7,30.0]
[1609988028158,22.043,1195.4,1181.7,431.183]
[1609988028360,22.043,1195.4,1194.2,4.00959]
[1609988028961,22.043,1195.4,1181.7,502.977]
[1609988029160,22.043,1195.4,1181.7,431.183]
[1609988030360,4.00959,1194.1,1194.0,4.00959]
[1609988030561,4.00959,1194.1,1181.7,502.977]
[1609988030761,7.68359,1194.1,1181.7,431.183]
[1609988031562,4.00959,1194.1,1181.7,431.183]
[1609988031762,7.68359,1194.1,1181.7,431.183]
[1609988032362,4.00959,1193.8,1193.7,4.00959]
[1609988033664,4.00959,1193.8,1181.7,502.977]
[1609988033964,7.68359,1193.8,1181.7,431.183]
[1609988034365,7.68359,1193.8,1193.6,4.00959]
[1609988034564,4.00959,1193.8,1193.6,4.00959]
[1609988035564,5.848,1194.6,1193.6,4.00959]
[1609988036365,5.848,1194.6,1193.2,58.3329]
[1609988036366,4.00959,1194.1,1194.0,4.00959]
[1609988037468,3.674,1194.6,1194.0,4.00959]
[1609988038369,3.674,1194.6,1193.2,58.3329]
[1609988038370,4.00959,1194.3,1194.2,4.00959]
[1609988041072,6.9575,1195.2,1194.2,4.00959]
[1609988042473,6.9575,1195.2,1194.8,4.00959]
[1609988044374,4.00959,1194.9,1194.8,4.00959]
[1609988045177,4.00959,1194.9,1194.4,56.0271]
[1609988046375,4.00959,1194.7,1194.5,4.00959]
[1609988047377,4.00959,1194.7,1194.4,56.0271]
[1609988048377,4.00959,1194.7,1194.6,4.00959]
[1609988048877,3.674,1195.2,1194.6,4.00959]
[1609988050378,3.674,1195.2,1195.0,4.00959]
[1609988050579,71.5373,1196.0,1195.0,4.00959]
[1609988051386,71.5373,1196.0,1194.4,56.0271]
[1609988051686,74.1831,1196.0,1194.4,56.0271]
[1609988052387,74.1831,1196.0,1195.1,4.00959]
[1609988052787,74.1831,1196.0,1194.4,56.0271]
[1609988053587,74.1831,1196.0,1193.6,6.026]
[1609988053588,6.3198,1196.0,1194.5,57.9266]
[1609988054389,6.3198,1196.0,1195.2,4.00959]
[1609988055292,6.3198,1196.0,1194.5,57.9266]
[1609988056095,36.3198,1196.0,1194.5,57.9266]
[1609988056395,4.00959,1194.6,1194.5,61.93619]
[1609988057997,6.3198,1196.0,1194.5,61.93619]
[1609988058399,4.00959,1194.9,1194.7,4.00959]
[1609988059399,6.3198,1196.0,1194.7,4.00959]
[1609988060398,4.00959,1195.1,1194.9,4.00959]
[1609988070415,4.00959,1195.1,1194.8,66.3261]
[1609988070613,4.00959,1194.9,1194.8,66.3261]
[1609988072316,4.00959,1194.9,1194.7,4.00959]
[1609988073916,4.00959,1194.9,1193.6,6.026]
[1609988074516,4.00959,1194.9,1194.8,4.00959]
[1609988076917,36.3198,1196.0,1194.8,4.00959]
[1609988077216,6.3198,1196.0,1194.8,4.00959]
[1609988078520,4.00959,1195.1,1194.8,4.00959]
[1609988080627,4.00959,1194.9,1194.8,4.00959]
[1609988082129,4.00959,1194.9,1194.3,57.1522]
[1609988082628,4.00959,1194.4,1194.3,57.1522]
[1609988085237,5.68189,1194.4,1194.3,57.1522]
[1609988085434,34.00959,1194.4,1194.3,57.1522]
[1609988086231,4.00959,1194.4,1194.3,57.1522]
[1609988088233,5.66849,1194.4,1194.3,57.1522]
[1609988088433,7.34029,1194.4,1194.3,57.1522]
[1609988088635,4.00959,1194.4,1194.3,57.1522]
[1609988091140,4.00959,1194.4,1193.3,4.00959]
[1609988092543,4.00959,1193.4,1193.3,4.00959]
[1609988093244,3.674,1195.0,1193.3,4.00959]
[1609988093845,5.3231,1195.0,1193.3,4.00959]
[1609988094346,3.674,1195.0,1193.3,4.00959]
[1609988094547,3.674,1195.0,1193.5,4.00959]
[1609988096747,4.00959,1193.6,1193.5,4.00959]
[1609988097148,3.674,1195.0,1193.5,4.00959]
[1609988097849,5.3608,1195.0,1193.5,4.00959]
[1609988098049,3.674,1195.0,1193.5,4.00959]
[1609988098750,4.00959,1194.0,1193.9,4.00959]
[1609988099152,5.66409,1194.0,1193.9,4.00959]
[1609988099852,4.00959,1194.0,1193.9,4.00959]
[1609988102655,4.00959,1194.0,1193.3,64.9904]
[1609988104758,3.674,1195.0,1193.3,64.9904]
[1609988104759,4.00959,1193.6,1193.5,4.00959]
[1609988106558,3.674,1195.0,1193.5,4.00959]
[1609988106759,4.00959,1194.0,1193.8,4.00959]
[1609988109964,4.00959,1194.0,1193.3,58.727]
[1609988110763,4.00959,1193.6,1193.5,4.00959]
[1609988113266,57.7024,1194.7,1193.5,4.00959]
[1609988114869,4.00959,1193.9,1193.7,4.00959]
[1609988115969,57.7024,1194.7,1193.7,4.00959]
[1609988116970,4.00959,1194.0,1193.7,4.00959]
[1609988118273,57.7024,1194.7,1193.7,4.00959]
[1609988118879,4.00959,1194.1,1193.9,4.00959]
[1609988121680,4.00959,1194.1,1193.5,67.1222]
[1609988122884,4.00959,1193.6,1193.5,71.13179]
[1609988126590,57.9405,1194.8,1193.5,71.13179]
[1609988126889,4.00959,1194.1,1193.8,4.00959]
[1609988128690,4.00959,1194.1,1193.8,63.26609]
[1609988130592,3.674,1195.0,1193.8,63.26609]
[1609988131091,4.00959,1194.4,1194.2,4.00959]
[1609988135194,4.00959,1194.4,1193.8,59.2565]
[1609988136997,4.00959,1194.4,1194.2,4.00959]
[1609988137699,4.00959,1194.4,1193.8,59.2565]
[1609988138099,4.00959,1194.4,1193.7,66.422]
[1609988139001,4.00959,1194.4,1194.3,4.00959]
[1609988142902,4.00959,1194.4,1193.7,66.422]
[1609988143203,4.00959,1194.2,1194.1,4.00959]
[1609988144002,3.674,1195.0,1194.1,4.00959]
[1609988145006,4.00959,1194.4,1194.3,4.00959]
[1609988145605,4.00959,1194.4,1193.7,66.422]
[1609988147006,4.00959,1194.4,1194.2,4.00959]
[1609988153614,3.674,1195.0,1194.2,4.00959]
[1609988155112,3.674,1195.0,1194.8,4.00959]
[1609988157014,3.674,1195.0,1194.8,50.89369]
[1609988157214,4.00959,1194.9,1194.8,50.89369]
[1609988157614,4.00959,1194.9,1194.8,46.8841]
[1609988159115,4.00959,1194.9,1194.8,50.89369]
[1609988165921,3.674,1195.8,1194.8,50.89369]
[1609988166322,3.674,1195.8,1194.8,4.00959]
[1609988167124,4.00959,1195.5,1195.4,4.00959]
[1609988167622,3.674,1195.8,1195.4,4.00959]
[1609988169224,3.674,1195.8,1195.7,4.00959]
[1609988171227,7.68359,1195.8,1195.7,4.00959]
[1609988173832,4.00959,1195.8,1195.7,4.00959]
[1609988174531,11.051,1196.2,1195.7,4.00959]
[1609988174731,3.674,1196.2,1195.7,4.00959]
[1609988174932,52.043,1197.0,1195.7,4.00959]
[1609988175231,4.00959,1196.0,1195.9,4.00959]
[1609988178235,4.00959,1196.0,1195.6,53.0757]
[1609988179237,4.00959,1195.7,1195.6,53.0757]
[1609988181938,34.00959,1195.7,1195.6,53.0757]
[1609988185039,34.00959,1195.7,1195.0,50.7516]
[1609988185439,4.00959,1195.1,1195.0,50.7516]
[1609988188946,4.00959,1195.1,1194.7,4.00959]
[1609988189345,4.00959,1195.1,1195.0,4.00959]
[1609988190247,4.00959,1195.1,1194.6,59.7018]
[1609988191549,4.00959,1194.7,1194.6,59.7018]
[1609988192949,30.0,1195.8,1194.6,59.7018]
[1609988193349,4.00959,1195.0,1194.8,4.00959]
[1609988193850,30.0,1195.8,1194.8,4.00959]
[1609988194550,30.0,1195.8,1193.7,5.6953]
[1609988195351,4.00959,1194.7,1194.5,4.00959]
[1609988196953,30.0,1195.8,1194.5,4.00959]
[1609988197357,4.00959,1194.9,1194.7,4.00959]
[1609988197856,4.00959,1194.9,1193.7,5.6953]
[1609988199359,4.00959,1194.4,1194.2,4.00959]
[1609988199760,4.00959,1194.4,1193.7,5.6953]
[1609988199960,4.00959,1194.4,1193.2,5.8508]
[1609988200163,4.00959,1194.4,1187.0,66.023]
[1609988201463,4.00959,1194.4,1194.1,4.00959]
[1609988203367,4.00959,1194.2,1194.1,4.00959]
[1609988206377,4.00959,1194.2,1187.4,41.051]
[1609988206575,4.00959,1194.2,1187.4,77.074]
[1609988207574,4.00959,1194.2,1194.1,4.00959]
[1609988209282,4.00959,1194.2,1187.4,77.074]
[1609988209480,4.00959,1193.9,1193.7,4.00959]
[1609988210377,4.00959,1193.9,1187.4,77.074]
[1609988211578,4.00959,1193.7,1193.5,4.00959]
[1609988211879,4.00959,1193.7,1187.4,77.074]
[1609988213180,4.00959,1193.7,1193.2,66.0439]
[1609988213480,4.00959,1193.9,1193.6,4.00959]
[1609988215480,4.00959,1194.0,1193.8,4.00959]
[1609988215781,4.00959,1194.0,1187.6,30.0]
[1609988216081,4.00959,1194.0,1187.6,66.023]
[1609988217481,4.00959,1193.7,1193.6,4.00959]
[1609988218980,57.5,1194.8,1193.6,4.00959]
[1609988219581,4.00959,1193.7,1193.6,4.00959]
[1609988221083,4.00959,1193.7,1193.3,47.5926]
[1609988221688,4.00959,1193.4,1193.3,47.5926]
[1609988222585,4.00959,1193.4,1192.8,67.1749]
[1609988223588,4.00959,1192.9,1192.8,67.1749]
[1609988231708,2.1874,1194.1,1192.8,71.18449]
[1609988231900,58.011,1194.2,1192.8,71.18449]
[1609988232095,55.9183,1193.6,1192.8,4.00959]
[1609988233596,59.92789,1193.6,1193.4,4.00959]
[1609988234297,55.9183,1193.6,1193.4,4.00959]
[1609988236000,55.9183,1193.6,1191.8,5.7527]
[1609988237599,4.00959,1193.4,1193.1,4.00959]
[1609988239001,4.00959,1193.4,1191.8,5.7527]
[1609988239602,55.9183,1193.6,1192.7,4.00959]
[1609988241405,30.0,1194.2,1192.7,4.00959]
[1609988241603,4.00959,1192.9,1192.7,4.00959]
[1609988242907,4.00959,1192.9,1191.8,5.7527]
[1609988243609,4.00959,1192.3,1192.2,4.00959]
[1609988244308,30.0,1194.2,1192.2,4.00959]
[1609988245609,4.00959,1192.4,1192.2,4.00959]
[1609988246410,30.0,1194.2,1192.2,4.00959]
[1609988247611,4.00959,1192.3,1192.0,4.00959]
[1609988247911,4.00959,1192.3,1191.1,5.8806]
[1609988248112,4.00959,1192.3,1188.0,30.0]
[1609988248312,4.00959,1192.3,1188.2,30.0]
[1609988249615,6.2646,1193.5,1192.0,4.00959]
[1609988250715,54.3123,1193.0,1192.0,4.00959]
[1609988251717,4.00959,1192.2,1192.0,4.00959]
[1609988252115,4.00959,1192.2,1191.7,54.6981]
[1609988253720,4.00959,1191.8,1191.7,58.70769]
[1609988254724,4.00959,1191.8,1191.7,54.6981]
[1609988260228,4.00959,1191.8,1191.0,71.08349]
[1609988261727,4.00959,1191.4,1191.0,71.08349]
[1609988265131,4.00959,1191.4,1191.0,67.0739]
[1609988265933,4.00959,1191.1,1191.0,67.0739]
[1609988269735,4.00959,1190.3,1190.2,4.00959]
[1609988272136,2.4214,1191.5,1190.2,4.00959]
[1609988273737,4.00959,1190.5,1190.2,4.00959]
[1609988277147,2.4214,1191.5,1190.2,4.00959]
[1609988277347,2.3811,1191.8,1190.2,4.00959]
[1609988277852,4.00959,1190.8,1190.7,4.00959]
[1609988280150,2.5737,1191.7,1190.7,4.00959]
[1609988280650,3.674,1192.0,1190.7,4.00959]
[1609988281850,4.00959,1191.1,1190.9,4.00959]
[1609988283352,3.674,1192.0,1190.9,4.00959]
[1609988283855,4.00959,1191.4,1191.3,4.00959]
[1609988284054,3.674,1192.0,1188.3,36.156]
[1609988284455,3.674,1192.0,1188.3,6.156]
[1609988285858,4.00959,1191.4,1191.1,4.00959]
[1609988286659,4.00959,1191.4,1188.3,6.156]
[1609988287959,4.00959,1190.6,1188.3,6.156]
[1609988288360,4.00959,1190.6,1188.5,164.2407]
[1609988289962,33.674,1192.0,1190.2,4.00959]
[1609988291863,33.674,1192.0,1190.6,4.00959]
[1609988292465,33.674,1192.0,1188.5,164.2407]
[1609988292763,36.9614,1192.0,1188.5,164.2407]
[1609988293264,6.9614,1192.0,1188.5,164.2407]
[1609988293865,4.00959,1190.8,1190.7,4.00959]
[1609988298169,4.00959,1190.8,1188.3,6.156]
[1609988299869,4.00959,1190.6,1190.5,4.00959]
[1609988300969,30.0,1191.9,1190.5,4.00959]
[1609988301573,14.3384,1192.0,1190.5,4.00959]
[1609988301973,4.00959,1190.7,1190.5,4.00959]
[1609988306377,14.3384,1192.0,1190.5,4.00959]
[1609988308079,14.3384,1192.0,1190.8,4.00959]
[1609988310085,4.00959,1191.2,1191.0,4.00959]
[1609988314995,4.00959,1191.2,1188.3,5.6516]
[1609988315590,7.68359,1191.2,1188.3,5.6516]
[1609988316191,7.68359,1191.2,1190.9,4.00959]
[1609988316592,4.00959,1191.2,1190.9,4.00959]
[1609988317993,69.9735,1191.7,1190.9,4.00959]
[1609988318194,4.00959,1191.5,1191.3,4.00959]
[1609988318593,4.00248437,1191.5,1190.6,52.3068]
[1609988320197,4.00959,1190.7,1190.6,56.31639]
[1609988321196,4.00959,1190.7,1190.6,52.3068]
[1609988322202,4.00959,1190.7,1190.6,56.31639]
[1609988322501,69.9735,1191.7,1190.6,56.31639]
[1609988324206,4.00959,1191.3,1191.2,4.00959]
[1609988324406,4.00959,1191.3,1190.6,52.3068]
[1609988326008,4.00959,1191.3,1190.7,56.7711]
[1609988326307,4.00959,1190.8,1190.7,56.7711]
[1609988333917,11.051,1192.0,1190.7,56.7711]
[1609988334517,4.00959,1191.1,1191.0,4.00959]
[1609988335719,4.00959,1191.1,1189.5,11.8513]
[1609988336020,7.68359,1191.1,1189.5,11.8513]
[1609988336319,7.68359,1191.1,1189.5,5.9145]
[1609988336519,4.00959,1190.7,1190.6,4.00959]
[1609988337520,4.00959,1190.7,1189.5,5.9145]
[1609988338422,4.00959,1190.5,1190.3,4.00959]
[1609988338923,4.00959,1190.5,1190.4,49.0647]
[1609988339122,4.00959,1190.5,1190.3,4.00959]
[1609988340825,4.00959,1190.5,1189.9,54.6237]
[1609988342429,4.00959,1190.2,1190.1,4.00959]
[1609988342826,70.1977,1190.9,1190.1,4.00959]
[1609988344428,4.00959,1190.4,1190.3,4.00959]
[1609988345030,4.00959,1190.4,1189.9,54.6237]
[1609988346428,4.00959,1190.2,1190.0,4.00959]
[1609988352236,70.1977,1190.9,1190.0,4.00959]
[1609988352535,4.00959,1190.7,1190.6,4.00959]
[1609988352937,4.00959,1190.7,1189.9,54.6237]
[1609988354238,4.00959,1190.7,1189.5,5.9145]
[1609988354638,4.00959,1190.7,1190.6,4.00959]
[1609988358740,3.674,1191.4,1190.6,4.00959]
[1609988360641,4.00959,1190.7,1190.6,4.00959]
[1609988362242,3.674,1191.4,1190.6,4.00959]
[1609988362543,3.674,1191.4,1191.0,4.00959]
[1609988363548,3.674,1191.4,1191.2,50.4694]
[1609988364549,4.00959,1191.6,1191.3,4.00959]
[1609988366049,7.377,1192.0,1191.3,4.00959]
[1609988366250,56.3558,1192.7,1191.3,4.00959]
[1609988366650,4.00959,1192.2,1192.0,4.00959]
[1609988366849,56.3558,1192.7,1192.0,4.00959]
[1609988368252,52.6818,1192.7,1192.0,4.00959]
[1609988368553,56.69139,1192.7,1192.6,4.00959]
[1609988368955,4.00959,1192.7,1191.3,5.6076]
[1609988369158,4.00959,1192.7,1190.3,5.8368]
[1609988369356,7.68359,1192.7,1190.4,6.168]
[1609988370652,7.68359,1192.7,1192.4,4.00959]
[1609988370852,4.00959,1192.7,1192.4,4.00959]
[1609988371353,7.68359,1192.7,1190.4,6.168]
[1609988372652,3.674,1192.7,1192.0,4.00959]
[1609988372852,30.0,1193.3,1192.0,4.00959]
[1609988374055,36.05,1193.4,1192.0,4.00959]
[1609988374655,4.00959,1192.1,1190.4,6.168]
[1609988376560,7.68359,1192.1,1190.4,6.168]
[1609988376759,4.00959,1191.9,1190.4,6.168]
[1609988377563,7.68359,1191.9,1190.4,6.168]
[1609988378064,4.00959,1191.9,1190.4,6.168]
[1609988378564,7.68359,1191.9,1190.4,6.168]
[1609988378764,4.00959,1191.7,1191.5,4.00959]
[1609988378967,4.00959,1191.7,1190.4,6.168]
[1609988379464,7.68359,1191.7,1190.4,6.168]
[1609988380667,4.00959,1191.5,1191.4,4.00959]
[1609988380868,33.674,1193.0,1191.4,4.00959]
[1609988382668,4.00959,1192.1,1191.8,4.00959]
[1609988383670,4.00959,1192.1,1190.4,6.168]
[1609988384672,4.00959,1192.1,1191.8,4.00959]
[1609988385469,4.00959,1192.1,1190.4,6.168]
[1609988385771,7.68359,1192.1,1190.4,6.168]
[1609988386672,4.00959,1191.6,1191.3,4.00959]
[1609988386871,4.00959,1191.6,1190.4,6.168]
[1609988388073,4.00959,1191.6,1185.4,30.0]
[1609988388373,4.00959,1191.6,1185.5,5.6476]
[1609988388672,4.00959,1191.1,1191.0,4.00959]
[1609988388874,11.051,1192.1,1191.0,4.00959]
[1609988389073,7.377,1192.1,1191.0,4.00959]
[1609988390675,4.00959,1191.2,1191.0,4.00959]
[1609988391577,11.051,1192.1,1191.0,4.00959]
[1609988391777,7.377,1192.1,1191.0,4.00959]
[1609988392680,7.377,1192.1,1185.6,30.0]
[1609988392681,7.377,1192.1,1191.4,4.00959]
[1609988394683,4.00959,1191.7,1191.4,4.00959]
[1609988395085,4.00959,1191.7,1185.6,30.0]
[1609988395383,7.68359,1191.7,1185.6,66.023]
[1609988396684,4.00959,1191.1,1191.0,4.00959]
[1609988396885,4.00959,1191.1,1185.6,66.023]
[1609988398689,4.00959,1191.1,1191.0,4.00959]
[1609988398989,3.674,1191.7,1191.0,4.00959]
[1609988400790,4.00959,1191.4,1191.3,4.00959]
[1609988401191,4.00959,1191.4,1191.3,11.98599]
[1609988401592,3.674,1191.7,1191.3,11.98599]
[1609988402695,3.674,1191.7,1191.6,4.00959]
[1609988402994,4.00959,1191.8,1191.6,4.00959]
[1609988404596,7.377,1192.1,1191.6,4.00959]
[1609988404796,7.377,1192.1,1191.3,7.9764]
[1609988406797,11.38659,1192.1,1192.0,4.00959]
[1609988406996,7.377,1192.1,1192.0,4.00959]
[1609988407296,54.5464,1192.7,1192.0,4.00959]
[1609988408801,4.00959,1192.1,1192.0,4.00959]
[1609988409112,54.5464,1192.7,1192.0,4.00959]
[1609988410503,54.5464,1192.7,1192.1,53.6439]
[1609988410504,3.674,1192.7,1192.1,53.6439]
[1609988410904,3.674,1192.7,1192.5,4.00959]
[1609988418012,51.261,1193.3,1192.5,4.00959]
[1609988418914,4.00959,1193.1,1192.1,53.6439]
[1609988419115,51.261,1193.3,1192.1,53.6439]
[1609988419814,59.0698,1193.8,1192.5,51.1632]
[1609988420815,4.00959,1193.5,1193.3,4.00959]
[1609988421617,4.00959,1193.5,1192.5,51.1632]
[1609988422820,4.00959,1193.3,1193.2,4.00959]
[1609988423220,4.00959,1193.3,1192.5,51.1632]
[1609988424820,4.00959,1193.3,1193.2,4.00959]
[1609988425120,59.0698,1193.8,1193.2,4.00959]
[1609988426920,63.07939,1193.8,1193.7,4.00959]
[1609988427122,63.07939,1193.8,1192.5,51.1632]
[1609988427521,66.75339,1193.8,1192.5,51.1632]
[1609988428822,4.00959,1193.1,1193.0,4.00959]
[1609988429823,4.00959,1193.1,1192.7,60.9055]
[1609988430924,91.1726,1193.7,1192.8,4.00959]
[1609988431724,91.1726,1193.7,1192.7,60.9055]
[1609988432426,61.1726,1193.7,1192.7,60.9055]
[1609988432925,4.00959,1192.8,1192.7,60.9055]
[1609988438633,4.00959,1192.8,1192.4,55.0125]
[1609988438833,4.00959,1192.8,1192.5,4.00959]
[1609988439835,4.00959,1192.8,1191.4,5.6404]
[1609988440032,7.68359,1192.8,1191.4,5.6404]
[1609988440934,4.00959,1192.6,1192.4,4.00959]
[1609988443737,4.00959,1192.6,1191.4,5.6404]
[1609988444236,34.00959,1192.6,1191.4,5.6404]
[1609988444537,34.00959,1192.6,1188.3,30.0]
[1609988444936,4.00959,1191.5,1191.3,4.00959]
[1609988445337,30.0,1192.5,1191.3,4.00959]
[1609988446340,30.0,1193.0,1191.3,4.00959]
[1609988446539,33.674,1193.0,1191.3,4.00959]
[1609988447040,4.00959,1191.9,1191.7,4.00959]
[1609988448842,4.00959,1191.9,1191.5,61.0641]
[1609988450942,4.00959,1191.7,1191.5,65.07369]
[1609988451643,4.00959,1191.7,1191.5,61.0641]
[1609988453143,4.00959,1191.9,1191.6,4.00959]
[1609988453443,4.00959,1191.9,1191.5,61.0641]
[1609988454945,4.00959,1191.6,1191.5,61.0641]
[1609988457546,4.00959,1191.6,1189.9,11.7592]
[1609988458952,4.00959,1191.3,1191.1,4.00959]
[1609988459751,4.00959,1191.3,1190.2,49.5113]
[1609988461058,4.00959,1190.7,1190.5,4.00959]
[1609988464456,30.0,1192.1,1190.5,4.00959]
[1609988464959,4.00959,1190.9,1190.5,4.00959]
[1609988465459,59.034,1192.2,1190.5,4.00959]
[1609988466760,58.558,1191.7,1190.5,4.00959]
[1609988466960,4.00959,1190.8,1190.7,4.00959]
[1609988473469,4.00959,1190.8,1190.3,59.1588]
[1609988475070,88.558,1191.7,1190.4,4.00959]
[1609988476170,30.0,1191.7,1190.4,4.00959]
[1609988476369,30.0,1191.6,1190.4,4.00959]
[1609988477169,4.00959,1190.5,1190.4,4.00959]
[1609988485385,4.00959,1190.5,1188.7,6.0254]
[1609988485681,4.00959,1190.5,1188.8,64.056]
[1609988487285,4.00959,1189.8,1189.7,4.00959]
[1609988487784,4.00959,1189.8,1188.8,64.056]
[1609988489387,4.00959,1189.8,1189.4,4.00959]
[1609988491287,4.00959,1189.5,1189.4,4.00959]
[1609988494694,62.4503,1190.7,1189.4,4.00959]
[1609988494994,60.1747,1190.0,1189.4,4.00959]
[1609988495298,60.1747,1190.0,1189.7,4.00959]
[1609988495796,60.1747,1190.0,1188.9,59.7651]
[1609988497298,60.1747,1190.0,1189.6,4.00959]
[1609988497801,60.1747,1190.0,1188.9,59.7651]
[1609988499605,60.1747,1190.0,1189.6,4.00959]
[1609988500200,60.1747,1190.0,1188.9,59.7651]
[1609988501401,60.1747,1190.0,1189.2,4.00959]
[1609988503402,4.00959,1189.5,1189.2,4.00959]
[1609988505404,4.00959,1189.5,1189.4,4.00959]
[1609988509508,4.00959,1189.5,1189.2,4.00959]
[1609988511409,33.674,1190.7,1189.4,4.00959]
[1609988513414,4.00959,1189.5,1189.4,4.00959]
[1609988513612,33.674,1190.7,1189.4,4.00959]
[1609988515414,4.00959,1189.8,1189.6,4.00959]
[1609988519024,4.00959,1189.8,1187.9,6.0981]
[1609988519418,4.00959,1189.4,1189.3,4.00959]
[1609988525833,3.674,1190.7,1189.3,4.00959]
[1609988527532,3.674,1190.7,1190.6,4.00959]
[1609988527836,41.051,1191.7,1190.6,4.00959]
[1609988528336,11.051,1191.7,1190.6,4.00959]
[1609988528636,7.051,1191.7,1190.6,4.00959]
[1609988528838,30.0,1191.8,1190.6,4.00959]